[Event "RUDAR VI-GM 2024"]
[Site "Pozarevac"]
[Date "2024.02.13"]
[Round "7.4"]
[White "Kotronias, Vasilios"]
[Black "Apaar Saxena"]
[Result "0-1"]
[ECO "C47"]
[WhiteElo "2453"]
[BlackElo "2150"]
[Annotator "TA"]
[PlyCount "50"]
[EventDate "2024.02.12"]
[EventType "tourn"]
[EventCountry "SRB"]
[SourceTitle "playchess.com"]
[Source "ChessBase"]
[SourceQuality "1"]
[TimeControl "5400+30"]

{[%evp 17,50,0,0,-4,9,7,3,4,47,0,0,6,6,12,7,0,18,15,69,-83,-35,-26,-33,-43,-33,-31,-38,-148,-157,-467,-482,-515,-463,-29994,-29995]} 1. e4 {[%emt 0:00:09]} e5 {[%emt 0:00:11]} 2. Nf3 {[%emt 0:01:33]} Nc6 {[%emt 0:00:04]} 3. Nc3 {[%emt 0:01:37]} Nf6 {[%emt 0:00:09]} 4. d4 {[%emt 0:00:03]} exd4 {[%emt 0:00:07]} 5. Nxd4 {[%emt 0:00:03]} Bb4 {[%emt 0:00:09]} 6. Nxc6 {[%emt 0:00:05]} bxc6 {[%emt 0:00:09]} 7. Bd3 {[%emt 0:00:04]} O-O {[%emt 0:01:48]} 8. O-O {[%emt 0:00:05]} d5 {[%emt 0:00:02]} 9. exd5 {[%emt 0:00:07]} cxd5 {[%emt 0:00:02]} 10. h3 {[%emt 0:00:24]} Re8 {[%emt 0:02:37]} 11. Qf3 {[%emt 0:05:18]} Rb8 {[%emt 0:00:11]} 12. Bg5 {[%emt 0:03:56] Black should prevent Bxf6. The position is equal.} Bb7 {[%emt 0:03:31]} 13. Rad1 {[%emt 0:08:32]} Be7 {[%emt 0:10:05] ...d4 would now be deadly.} 14. Nb5 {[%emt 0:24:53][%cal Of1e1]} c5 {[%emt 0:05:06]} 15. Rfe1 {[%emt 0:06:25]} Qb6 {[%emt 0:04:52]} 16. Qg3 {[%emt 0:10:05][%cal Oe1e7] Hoping for Rxe7!} Nh5 {[%emt 0:26:43]} 17. Qe5 {[%emt 0:00:05]} f6 $1 {[%emt 0:01:24]} 18. Qe2 {[%emt 0:00:03]} (18. Qc7 $1 $14 {was the only good move.} Qxc7 19. Nxc7 fxg5 20. Nxe8 (20. Bb5 Kf8 $14) 20... Rxe8 21. Bb5) 18... g6 {[%emt 0:02:55]} (18... fxg5 $17 19. Qxh5 g6) 19. Bh6 $15 {[%emt 0:00:03]} c4 $36 {[%emt 0:06:02][%mdl 2048] Black is pushing.} 20. Bxc4 $1 {[%emt 0:00:08]} dxc4 {[%emt 0:00:18]} 21. Qxc4+ {[%emt 0:00:02]} Kh8 {[%emt 0:00:11] Threatens to win with ...Bc5.} 22. Nc7 {[%emt 0:00:09]} ({White should play} 22. Re6 $15 Qc5 23. Qxc5 Bxc5 24. Rxe8+ Rxe8 25. Nd6 Bxd6 26. Rxd6) 22... Rbc8 $17 {[%emt 0:15:31]} 23. Rd7 {[%emt 0:15:41] [#]} (23. Nd5 $17 Rxc4 24. Nxb6) 23... Bc5 $1 $19 {[%emt 0:00:07]} 24. Rxe8+ {[%emt 0:00:36]} (24. Nxe8 $2 {perishes.} Bxf2+ (24... Qxb2 25. Qxc5 Rxc5 26. Nd6 Rc8 27. Nxc8) 25. Kh1 Rxc4) 24... Rxe8 {[%emt 0:00:01]} 25. Nxe8 {[%emt 0:00:23]} (25. Qe2 $19 Rg8 (25... Rxe2 26. Rd8+) (25... Bxf2+ 26. Qxf2 Qc6 27. Qe2 $11) 26. Nd5) 25... Bxf2+ {[%emt 0:00:02] Weighted Error Value: White=0.81/Black=0.11 (very precise) .  Loses game:     	White=1     	---        Mistake:       	White=3     	Black=1      Inaccurate:     	White=1     	Black=1      OK:         	White=7     	Black=2      Best:        	White=1     	Black=4      Strong:       	White=1     	Black=2} 0-1

[Event "RUDAR VI-GM 2024"]
[Site "Pozarevac"]
[Date "2024.02.13"]
[Round "7.5"]
[White "Garifullina, Leya"]
[Black "Ahmadzada, Ahmad"]
[Result "1/2-1/2"]
[ECO "A62"]
[WhiteElo "2422"]
[BlackElo "2501"]
[Annotator "RC"]
[PlyCount "28"]
[EventDate "2024.02.12"]
[EventType "tourn"]
[EventCountry "SRB"]
[SourceTitle "playchess.com"]
[Source "ChessBase"]
[SourceQuality "1"]
[TimeControl "5400+30"]

1. d4 {[%emt 0:00:03]} Nf6 {[%emt 0:03:42]} 2. c4 {[%emt 0:00:07]} e6 {[%emt 0:00:07]} 3. g3 {[%emt 0:00:05]} c5 {[%emt 0:00:39]} 4. d5 {[%emt 0:00:06]} exd5 {[%emt 0:00:07]} 5. cxd5 {[%emt 0:00:05]} d6 {[%emt 0:00:06]} 6. Nc3 {[%emt 0:00:05]} g6 {[%emt 0:00:04]} 7. Nf3 {[%emt 0:00:06]} Bg7 {[%emt 0:00:06]} 8. Bg2 {[%emt 0:00:04]} O-O {[%emt 0:00:05]} 9. O-O {[%emt 0:00:04]} Re8 {[%emt 0:00:15]} 10. Re1 {[%emt 0:00:07]} Na6 {[%emt 0:02:16]} 11. Nd2 {[%emt 0:02:33]} Ng4 {[%emt 0:11:30]} 12. h3 {[%emt 0:05:22]} Ne5 {[%emt 0:01:57]} 13. f4 {[%emt 0:04:47]} Nd7 {[%emt 0:00:27]} 14. Kh2 {[%emt 0:04:34]} Rb8 {[%emt 0:15:59]} 1/2-1/2

[Event "RUDAR VI-GM 2024"]
[Site "Pozarevac"]
[Date "2024.02.14"]
[Round "8.1"]
[White "Krishna Teja, N."]
[Black "Ahmadzada, Ahmad"]
[Result "1/2-1/2"]
[ECO "A37"]
[WhiteElo "2349"]
[BlackElo "2501"]
[Annotator "TA"]
[PlyCount "23"]
[EventDate "2024.02.12"]
[EventType "tourn"]
[EventCountry "SRB"]
[SourceTitle "playchess.com"]
[Source "ChessBase"]
[SourceQuality "1"]
[TimeControl "5400+30"]

{[%evp 14,23,23,27,21,13,29,32,26,19,33,37]} 1. Nf3 {[%emt 0:14:42]} c5 {[%emt 0:00:30]} 2. c4 {[%emt 0:00:04]} Nc6 {[%emt 0:00:20]} 3. Nc3 {[%emt 0:00:14]} e5 {[%emt 0:00:05]} 4. g3 {[%emt 0:00:39]} g6 {[%emt 0:00:22]} 5. Bg2 {[%emt 0:00:05]} Bg7 {[%emt 0:00:12]} 6. O-O {[%emt 0:00:08]} Nge7 {[%emt 0:00:26]} 7. a3 {[%emt 0:01:12]} a5 {[%emt 0:04:55]} 8. Ne1 {[%emt 0:00:57][%cal Bf3e1,Be1c2,Bc2e3,Be3d5][%mdl 32]} d6 {[%emt 0:02:20]} 9. Nc2 {[%emt 0:00:25]} Be6 {[%emt 0:02:47]} 10. Ne3 {[%emt 0:00:09]} O-O {[%emt 0:03:02]} 11. d3 {[%emt 0:00:53]} Qd7 {[%emt 0:12:07]} 12. Ned5 {[%emt 0:00:49] Black did not feel at home in the position after the opening.   Weighted Error Value: White=0.00 (flawless) /Black=0.08 (flawless) .  OK:         	White=4     	---} 1/2-1/2

[Event "RUDAR VI-GM 2024"]
[Site "Pozarevac"]
[Date "2024.02.14"]
[Round "8.2"]
[White "Apaar Saxena"]
[Black "Garifullina, Leya"]
[Result "1/2-1/2"]
[ECO "E04"]
[WhiteElo "2150"]
[BlackElo "2422"]
[Annotator "TA"]
[PlyCount "55"]
[EventDate "2024.02.12"]
[EventType "tourn"]
[EventCountry "SRB"]
[SourceTitle "playchess.com"]
[Source "ChessBase"]
[SourceQuality "1"]
[TimeControl "5400+30"]

{[%evp 14,55,7,8,12,0,0,0,0,0,0,1,7,0,0,0,14,-35,-40,-34,0,-53,-41,-79,-68,-81,-74,-147,-142,-152,33,0,9,23,28,11,15,12,12,21,173,28,30,0]} 1. d4 {[%emt 0:00:26]} Nf6 {[%emt 0:03:21]} 2. c4 {[%emt 0:00:04]} e6 {[%emt 0:00:04]} 3. Nf3 {[%emt 0:00:10]} d5 {[%emt 0:00:05]} 4. g3 {[%emt 0:00:04]} dxc4 {[%emt 0:00:06]} 5. Bg2 {[%emt 0:00:03]} a6 {[%emt 0:00:07]} 6. O-O {[%emt 0:00:07]} Nc6 {[%emt 0:00:10]} 7. a4 {[%emt 0:00:05]} Rb8 {[%emt 0:00:05]} 8. a5 {[%emt 0:00:03]} Bb4 {[%emt 0:00:06][%cal Oe8g8]} 9. Ra4 {[%emt 0:00:04]} Be7 {[%emt 0:00:05]} (9... Bxa5 $2 10. Ne5 Nxe5 11. dxe5 $18) 10. Nbd2 {[%emt 0:00:13]} Nxd4 {[%emt 0:00:23] The position is equal.} 11. Nxd4 {[%emt 0:02:17]} (11. Nxc4 Nxf3+ 12. Bxf3 Qxd1 13. Rxd1 Bd7 $17) 11... Qxd4 {[%emt 0:00:14]} 12. Rxc4 {[%emt 0:00:03]} Qd8 {[%emt 0:00:07]} 13. Qc2 {[%emt 0:01:33][%cal Of1d1]} O-O {[%emt 0:01:26]} 14. Rd1 {[%emt 0:01:52][%cal Od2e4]} (14. Rxc7 Nd5 15. Rc4 Qxa5 $17) 14... Bd7 {[%emt 0:00:16]} 15. Ne4 {[%emt 0:08:00]} (15. Nb3 $1 $11) 15... Nd5 $1 $15 {[%emt 0:05:59]} 16. Nc3 {[%emt 0:09:13]} Nxc3 {[%emt 0:12:47]} 17. Qxc3 {[%emt 0:04:18]} ({Better is} 17. Rxc3 $11 Bd6 18. Bf4) 17... Bd6 $1 {[%emt 0:02:39]} 18. Bf4 {[%emt 0:09:16] [#]} Bb5 $1 {[%emt 0:07:57]} 19. Rcd4 {[%emt 0:19:54][%cal Rf4d6,Bc4d4,Bd4d6,Bd6b6][%mdl 32]} Bxe2 {[%emt 0:11:19]} 20. Bxd6 {[%emt 0:04:51]} (20. Rc1 $142) 20... cxd6 $17 {[%emt 0:00:13]} 21. Rxd6 {[%emt 0:00:14]} Qg5 {[%emt 0:15:45]} ({Black should try} 21... Bxd1 $17 22. Rxd8 Rfxd8) 22. Qd2 $36 {[%emt 0:03:27][%mdl 2048] White is more active.} (22. h4 {is more complex.} Qf5 23. Rc1 Rbd8 24. Rxd8 Rxd8 25. Qd2) 22... Qxd2 {[%emt 0:12:21]} 23. R1xd2 {[%emt 0:00:03]} Bb5 {[%emt 0:00:18]} 24. h4 {[%emt 0:06:53]} (24. Rb6 $6 Rfe8 $16) 24... g6 {[%emt 0:02:00]} 25. Rb6 {[%emt 0:02:18]} Rfc8 {[%emt 0:01:37]} 26. Bxb7 {[%emt 0:02:19]} Rc7 {[%emt 0:01:48] [#]} (26... Rc1+ $11 27. Kh2 Kf8) 27. Bf3 {[%emt 0:05:20]} (27. Bxa6 $2 {perishes.} Rxb6 (27... Rc1+ $2 28. Kh2 $19) 28. axb6 (28. Rd8+ $2 Kg7 $19) 28... Rc1+ (28... Bxa6 $2 {loses.} 29. bxc7 Kg7 30. Rd6 $18) 29. Kh2 Bxa6 $19) (27. Bc6 $1 $18 Rxb6 28. axb6 Rxc6 29. b7) 27... Rbc8 $11 {[%emt 0:01:08]} 28. Bb7 {[%emt 0:03:38] Weighted Error Value: White=0.26 (precise) /Black=0.27 (precise) .  Mistake:       	White=4     	Black=2      Inaccurate:     	White=3     	Black=1      OK:         	White=5     	Black=6      Best:        	White=2     	Black=2      Strong:       	---       	Black=3} 1/2-1/2

[Event "RUDAR VI-GM 2024"]
[Site "Pozarevac"]
[Date "2024.02.14"]
[Round "8.3"]
[White "Zemlyanskii, Ivan"]
[Black "Kotronias, Vasilios"]
[Result "1-0"]
[ECO "E94"]
[WhiteElo "2492"]
[BlackElo "2453"]
[Annotator "TA"]
[PlyCount "97"]
[EventDate "2024.02.12"]
[EventType "tourn"]
[EventCountry "SRB"]
[SourceTitle "playchess.com"]
[Source "ChessBase"]
[SourceQuality "1"]
[TimeControl "5400+30"]

{[%evp 28,97,74,75,83,77,85,89,98,33,60,57,60,55,70,75,103,41,73,5,27,40,114,104,116,104,102,62,107,0,63,47,33,28,74,36,41,52,94,54,81,55,120,93,98,138,297,297,297,297,297,297,294,316,1846,1838,1804,1766,1654,1474,29972,29973,29977,29978,29984,29985,29985,29986,29989,29990,29998,29999]} 1. d4 {[%emt 0:00:03]} Nf6 {[%emt 0:00:07]} 2. c4 {[%emt 0:00:02]} g6 {[%emt 0:00:04]} 3. Nc3 {[%emt 0:00:04]} Bg7 {[%emt 0:00:03]} 4. e4 {[%emt 0:00:05]} d6 {[%emt 0:00:03]} 5. Nf3 {[%emt 0:00:04]} O-O {[%emt 0:00:04]} 6. Be2 {[%emt 0:00:03]} e5 {[%emt 0:00:03]} 7. O-O {[%emt 0:00:05]} Bg4 {[%emt 0:00:01]} 8. d5 {[%emt 0:00:07]} a5 {[%emt 0:00:04]} 9. Be3 {[%emt 0:00:03] E94: King's Indian: Classical: 6 Be2 e5 7 0-0: Various Black 7th moves.} Na6 {[%emt 0:00:05]} 10. Nd2 {[%emt 0:00:03]} Bd7 {[%emt 0:00:08]} 11. a3 {[%emt 0:00:05]} h5 {[%emt 0:00:22]} 12. f3 {[%emt 0:00:03]} Nh7 {[%emt 0:00:33]} 13. Rb1 {[%emt 0:03:21]} b6 {[%emt 0:00:06]} 14. b4 {[%emt 0:02:32]} f5 {[%emt 0:00:17]} 15. bxa5 $146 {[%emt 0:07:18]} ({Predecessor:} 15. c5 axb4 16. axb4 bxc5 17. bxc5 Nxc5 18. Bxc5 dxc5 19. Bb5 Bxb5 20. Nxb5 {0-1 Yankelevich,L (2416)-Kotronias,V (2522) Belgrade Radnicki GM 2nd 2021 (5)}) 15... Nc5 {[%emt 0:00:55]} 16. axb6 {[%emt 0:02:13]} cxb6 {[%emt 0:00:04]} 17. a4 {[%emt 0:16:44]} h4 {[%emt 0:00:08]} 18. Nb5 {[%emt 1:06:35]} (18. h3 $16) 18... Bf6 {[%emt 0:05:42]} 19. Qe1 {[%emt 0:00:00]} (19. Nxd6 $2 Bxa4 (19... Nxa4 20. Nb7 $16) 20. Qe1 Qxd6 $19) 19... Qe7 {[%emt 0:13:22]} 20. Nc3 {[%emt 0:00:00]} Bg5 {[%emt 0:03:26]} 21. Bf2 {[%emt 0:00:00]} Qd8 {[%emt 0:14:43]} 22. Rb4 {[%emt 0:00:00]} ({White should play} 22. exf5 $1 $16 gxf5 23. Kh1) 22... Rf7 {[%emt 0:06:06]} 23. Nb3 {[%emt 0:00:00]} ({Better is} 23. Kh1 $16) 23... h3 $1 $11 {[%emt 0:00:04]} 24. g3 {[%emt 0:00:00]} Nf6 {[%emt 0:08:43]} (24... fxe4 $14 25. Nxe4 Nxe4 26. fxe4 Rxa4) 25. exf5 $1 $16 {[%emt 0:00:00]} gxf5 {[%emt 0:00:22]} 26. Nxc5 {[%emt 0:00:00]} (26. Qb1 {with more complications.} f4 27. Nxc5 bxc5 28. Rb7) 26... bxc5 {[%emt 0:00:42]} 27. Rb2 {[%emt 0:00:00]} Qf8 {[%emt 0:47:43]} 28. Bd3 {[%emt 0:05:00]} (28. Qb1 $16) 28... Re8 {[%emt 0:00:00]} ({Black should try} 28... e4 $1 $11 29. fxe4 Ng4 30. exf5 Ne5) 29. Re2 $14 {[%emt 0:00:00]} e4 {[%emt 0:00:00]} 30. fxe4 {[%emt 0:00:00]} Ng4 {[%emt 0:00:00]} 31. exf5 {[%emt 0:00:00]} Ne5 $1 {[%emt 0:00:00]} 32. Qd1 $1 {[%emt 0:02:00]} Bxf5 {[%emt 0:02:30]} 33. Bxf5 {[%emt 0:00:00]} Rxf5 {[%emt 0:00:30]} 34. Ne4 {[%emt 0:01:00]} Nf3+ {[%emt 0:00:00]} 35. Kh1 {[%emt 0:00:30]} Nd4 {[%emt 0:01:00]} 36. Ree1 {[%emt 0:00:00]} Rxe4 $2 {[%emt 0:00:00]} (36... Nf3 $16 37. Nxg5 (37. Nxd6 Rxe1 38. Bxe1 Qxd6 $15) 37... Rxe1 38. Rxe1 (38. Bxe1 Nxg5 39. Rxf5 Qxf5 $16) 38... Rxg5) 37. Rxe4 $18 {[%emt 0:00:00]} Rxf2 {[%emt 0:00:00]} 38. Rf4 $1 {[%emt 0:00:00]} Rxf4 {[%emt 0:00:00]} 39. gxf4 {[%emt 0:00:00]} Qf5 {[%emt 0:00:00]} 40. Qe1 $1 {[%emt 0:00:00]} (40. fxg5 Qe4+) 40... Bh4 $2 {[%emt 0:00:00] [#]} (40... Bxf4 $2 41. Qe7 $18) (40... Bf6 41. Qe8+ Kg7) 41. Qe8+ $1 $18 {[%emt 0:00:00]} (41. Rg1+ Kf7 42. Qb1 Nc2 (42... Qxf4 $2 43. Qh7+ Kf6 44. Qg7+ Kf5 45. Qf7+ Ke4 46. Qxf4+ Kxf4 47. a5 $18) 43. Qb7+ Be7 $11) 41... Kh7 {[%emt 0:00:00] [#]} 42. Rg1 $1 {[%emt 0:00:00]} ({Weaker is} 42. a5 Bf2 $11) 42... Bf6 {[%emt 0:00:00]} 43. a5 {[%emt 0:00:00]} Kh6 {[%emt 0:00:00]} 44. a6 {[%emt 0:00:00]} Nf3 {[%emt 0:00:00]} 45. Qe6 {[%emt 0:00:38]} ({Inferior is} 45. a7 Nxg1 46. a8=Q (46. a8=B {is a self mate.} Ne2 47. Qf8+ Kh5 48. Qf7+ Kh4) 46... Qd3 $11) 45... Qxf4 {[%emt 0:00:00]} 46. Qxh3+ {[%emt 0:01:04]} Nh4 {[%emt 0:00:00]} 47. Qg4 {[%emt 0:00:31]} Qf2 {[%emt 0:00:00]} 48. a7 {[%emt 0:00:06]} Be5 {[%emt 0:00:00]} 49. Qg5+ {[%emt 0:00:07]} 1-0

[Event "RUDAR VI-GM 2024"]
[Site "Pozarevac"]
[Date "2024.02.14"]
[Round "8.4"]
[White "Grover, Sahaj"]
[Black "Volkov, Dmitriy"]
[Result "1-0"]
[ECO "B51"]
[WhiteElo "2503"]
[BlackElo "2268"]
[Annotator "TA"]
[PlyCount "93"]
[EventDate "2024.02.12"]
[EventType "tourn"]
[EventCountry "SRB"]
[SourceTitle "playchess.com"]
[Source "ChessBase"]
[SourceQuality "1"]
[TimeControl "5400+30"]

{[%evp 16,93,31,24,41,40,43,45,42,47,50,50,49,45,48,42,44,39,53,48,53,43,31,35,40,27,65,62,62,64,72,64,74,55,80,84,85,52,94,75,91,64,68,75,74,72,73,77,75,66,68,59,89,91,97,83,258,103,215,201,202,217,222,222,202,133,478,475,471,484,466,464,586,568,552,552,580,435,406,388]} 1. e4 {[%emt 0:00:07]} c5 {[%emt 0:00:04]} 2. Nf3 {[%emt 0:00:05]} Nc6 {[%emt 0:00:04]} 3. Bb5 {[%emt 0:00:05]} d6 {[%emt 0:00:12]} 4. O-O {[%emt 0:00:07]} Bd7 {[%emt 0:00:07]} 5. Re1 {[%emt 0:00:06]} Nf6 {[%emt 0:00:07]} 6. c3 {[%emt 0:00:05]} a6 {[%emt 0:00:06]} 7. Bf1 {[%emt 0:00:05]} Bg4 {[%emt 0:00:06]} 8. d4 {[%emt 0:00:04]} cxd4 {[%emt 0:00:11]} 9. cxd4 {[%emt 0:00:06]} Bxf3 {[%emt 0:00:06]} 10. gxf3 {[%emt 0:00:05]} d5 {[%emt 0:00:04]} 11. Nc3 {[%emt 0:00:08]} e6 {[%emt 0:00:09] White is slightly better.} 12. Bg5 $1 {[%emt 0:00:05]} Be7 {[%emt 0:00:04]} 13. Bxf6 $1 {[%emt 0:00:05]} Bxf6 {[%emt 0:00:05]} 14. exd5 {[%emt 0:00:05]} Nxd4 {[%emt 0:00:09][%cal Bc6d4,Bd4f5,Bf5d6][%mdl 32]} 15. Re4 {[%emt 0:00:05]} Nf5 {[%emt 0:00:11]} 16. dxe6 {[%emt 0:00:08]} O-O {[%emt 0:00:06] Black is weak on the light squares} 17. exf7+ {[%emt 0:00:05]} Kh8 $1 {[%emt 0:00:03]} (17... Rxf7 $2 {too greedy.} 18. Bc4 $18) 18. Qd5 {[%emt 0:00:28]} Nd6 {[%emt 0:10:58]} 19. Re3 {[%emt 0:00:08]} Nxf7 {[%emt 0:20:00]} 20. Rd1 {[%emt 0:00:33]} ({Reject} 20. Qxb7 Bd4 21. Re2 Ra7 $11) 20... Qxd5 {[%emt 0:07:31]} 21. Nxd5 {[%emt 0:00:06]} Rad8 {[%emt 0:13:08]} 22. f4 {[%emt 0:00:39]} b5 {[%emt 0:12:44]} 23. b4 {[%emt 0:02:02]} Rd6 {[%emt 0:02:35] Prevents Re6} 24. Bg2 {[%emt 0:08:31]} Rfd8 {[%emt 0:10:33]} 25. Rde1 {[%emt 0:00:44] White wants to mate with Re8+.} g6 {[%emt 0:01:23]} 26. Re6 {[%emt 0:13:10]} Bb2 {[%emt 0:02:48]} 27. Re7 {[%emt 0:05:13]} Kg8 {[%emt 0:02:23]} 28. Nc7 {[%emt 0:06:10]} Bc3 {[%emt 0:02:21]} 29. Re8+ {[%emt 0:00:49]} Rxe8 {[%emt 0:01:25]} 30. Rxe8+ {[%emt 0:00:06]} Kg7 {[%emt 0:00:03]} 31. Nd5 {[%emt 0:02:40]} Bd4 {[%emt 0:01:55]} 32. Bf3 {[%emt 0:00:46]} Nd8 {[%emt 0:04:28]} 33. Re7+ {[%emt 0:01:25]} Kg8 {[%emt 0:01:15]} 34. Nc7 {[%emt 0:00:36] Hoping for Bd5+.} Bf6 {[%emt 0:03:54]} 35. Re3 {[%emt 0:00:07] Ne8 would now be deadly. White is much more active.} h5 $2 {[%emt 0:01:17] [#]} (35... Kf8 $16) 36. Bd5+ $2 {[%emt 0:00:26]} (36. Ne8 $1 $18 {[%cal Re8d6]} Rb6 37. Nxf6+ Rxf6 38. Re8+ Rf8 39. Bd5+ Kg7 40. Re7+ Kf6 41. Ra7) 36... Kh7 {[%emt 0:00:07] [#]} (36... Kf8 $16) 37. Ne8 $1 $18 {[%emt 0:00:05]} Rb6 {[%emt 0:00:29]} 38. Nxf6+ {[%emt 0:02:51]} Rxf6 {[%emt 0:00:02][%mdl 4096] Endgame. KRB-KRN} 39. Re7+ {[%emt 0:00:35]} Kh6 {[%emt 0:00:03][%cal Od8c6]} 40. Rd7 {[%emt 0:02:04]} Rf8 {[%emt 0:01:25][%mdl 8192]} (40... Nc6 $16) 41. Kg2 {[%emt 0:01:54]} h4 {[%emt 0:00:39]} 42. Kh3 {[%emt 0:00:24]} Rxf4 {[%emt 0:01:55]} 43. Rxd8 {[%emt 0:00:09]} Rxb4 {[%emt 0:00:03]} 44. Ra8 {[%emt 0:00:41]} Rd4 {[%emt 0:01:14]} 45. Bb3 {[%emt 0:00:07]} Kg5 {[%emt 0:00:50]} 46. Kg2 {[%emt 0:00:30]} Rd6 {[%emt 0:00:39]} 47. h3 {[%emt 0:00:44] Weighted Error Value: White=0.13 (very precise) /Black=0.33.  Loses game:     	---       	Black=2      Mistake:       	White=1     	Black=1      Inaccurate:     	White=2     	Black=3      OK:         	White=19    	Black=17     Best:        	White=3     	Black=2      Strong:       	White=3     	Black=1} 1-0

[Event "RUDAR VI-GM 2024"]
[Site "Pozarevac"]
[Date "2024.02.14"]
[Round "8.5"]
[White "Sutormin, Danila"]
[Black "Velpula Sarayu"]
[Result "1/2-1/2"]
[ECO "E97"]
[WhiteElo "2353"]
[BlackElo "2444"]
[Annotator "RC"]
[PlyCount "53"]
[EventDate "2024.02.12"]
[EventType "tourn"]
[EventCountry "SRB"]
[SourceTitle "playchess.com"]
[Source "ChessBase"]
[SourceQuality "1"]
[TimeControl "5400+30"]

1. d4 {[%emt 0:00:47]} Nf6 {[%emt 0:03:09]} 2. c4 {[%emt 0:00:09]} g6 {[%emt 0:00:30]} 3. Nc3 {[%emt 0:00:08]} Bg7 {[%emt 0:00:29]} 4. e4 {[%emt 0:00:07]} d6 {[%emt 0:00:32]} 5. Nf3 {[%emt 0:00:11]} O-O {[%emt 0:00:30]} 6. Be2 {[%emt 0:00:06]} e5 {[%emt 0:00:27]} 7. O-O {[%emt 0:00:10]} Nc6 {[%emt 0:00:27]} 8. d5 {[%emt 0:00:11]} Ne7 {[%emt 0:00:30]} 9. b4 {[%emt 0:00:14]} a5 {[%emt 0:00:32]} 10. bxa5 {[%emt 0:00:10]} Rxa5 {[%emt 0:00:28]} 11. a4 {[%emt 0:00:14]} b6 {[%emt 0:01:09]} 12. Nd2 {[%emt 0:00:28]} Ra8 {[%emt 0:04:30]} 13. Nb3 {[%emt 0:00:24]} Ne8 {[%emt 0:01:59]} 14. a5 {[%emt 0:12:37]} bxa5 {[%emt 0:03:20]} 15. Nxa5 {[%emt 0:12:48]} Rb8 {[%emt 0:06:04]} 16. Be3 {[%emt 0:14:11]} f5 {[%emt 0:05:08]} 17. f3 {[%emt 0:00:38]} h5 {[%emt 0:02:57]} 18. Qc2 {[%emt 0:03:35]} f4 {[%emt 0:06:38]} 19. Ba7 {[%emt 0:00:53]} Ra8 {[%emt 0:00:41]} 20. Bf2 {[%emt 0:00:08]} Rb8 {[%emt 0:08:52]} 21. c5 {[%emt 0:07:08]} g5 {[%emt 0:01:52]} 22. Rfb1 {[%emt 0:00:40]} Rb7 {[%emt 0:50:46]} 23. Rb4 Rxb4 {[%emt 0:00:00]} 24. Rb1 {[%emt 0:01:14]} dxc5 25. Rxb4 {[%emt 0:06:42]} Nf6 {[%emt 0:00:00]} 26. Rb8 {[%emt 0:09:47]} c6 {[%emt 0:00:00]} 27. Bb5 {[%emt 0:00:26]} 1/2-1/2

[Event "RUDAR VI-GM 2024"]
[Site "Pozarevac"]
[Date "2024.02.15"]
[Round "9.1"]
[White "Velpula Sarayu"]
[Black "Krishna Teja, N."]
[Result "1/2-1/2"]
[ECO "C10"]
[WhiteElo "2444"]
[BlackElo "2349"]
[Annotator "TA"]
[PlyCount "22"]
[EventDate "2024.02.12"]
[EventType "tourn"]
[EventCountry "SRB"]
[SourceTitle "playchess.com"]
[Source "ChessBase"]
[SourceQuality "1"]
[TimeControl "5400+30"]

{[%evp 15,22,10,60,54,67,51,68,51,65]} 1. e4 {[%emt 0:01:37]} e6 {[%emt 0:00:03]} 2. d4 {[%emt 0:00:04]} d5 {[%emt 0:00:05]} 3. Nc3 {[%emt 0:00:02]} dxe4 {[%emt 0:00:07]} 4. Nxe4 {[%emt 0:00:04]} Bd7 {[%emt 0:00:06]} 5. Nf3 {[%emt 0:00:06]} Bc6 {[%emt 0:00:03]} 6. Bd3 {[%emt 0:00:05]} Nd7 {[%emt 0:00:05]} 7. O-O {[%emt 0:00:06]} Ngf6 {[%emt 0:00:03]} 8. Nxf6+ {[%emt 0:00:25]} Nxf6 {[%emt 0:00:05]} (8... Qxf6 $11 9. Be2 Bd6) 9. Re1 $14 {[%emt 0:00:07] White is slightly better.} Be7 {[%emt 0:00:15]} 10. c3 {[%emt 0:00:08]} Bxf3 {[%emt 0:00:05]} 11. Qxf3 {[%emt 0:00:04]} ({Much weaker is} 11. gxf3 O-O $11) 11... c6 {[%emt 0:00:04] White took control after the opening.   Weighted Error Value: White=0.00 (flawless) /Black=0.23 (precise) .  OK:         	White=1     	Black=1} 1/2-1/2